bitfinex/quotes_BTCUSD_20250922
["timestamp","ask_amount","ask_price","bid_price","bid_amount"]
[1758546801371,0.38254725,113150.0,113130.0,0.46589176]
[1758546801572,0.38254725,113150.0,113140.0,0.02658308]
[1758546802206,0.00014043,113150.0,113140.0,0.02658308]
[1758546802364,0.00214043,113150.0,113140.0,0.02658308]
[1758546802561,0.38254725,113150.0,113140.0,0.02658308]
[1758546802869,0.38454725,113150.0,113140.0,0.02658308]
[1758546804246,0.4070718,113150.0,113140.0,0.02658308]
[1758546804782,0.40676811,113150.0,113140.0,0.02658308]
[1758546805253,0.40676811,113150.0,113140.0,0.20335522]
[1758546805429,0.40676811,113150.0,113140.0,0.02658308]
[1758546805876,0.02452455,113150.0,113140.0,0.02658308]
[1758546806055,0.40693137,113150.0,113140.0,0.02658308]
[1758546809950,0.02452455,113150.0,113140.0,0.02658308]
[1758546810083,0.02452455,113150.0,113140.0,0.20335522]
[1758546810277,0.02452455,113150.0,113140.0,0.20538522]
[1758546810549,0.02452455,113150.0,113140.0,0.20837522]
[1758546811085,0.02452455,113150.0,113140.0,0.20538522]
[1758546811674,0.02452455,113150.0,113140.0,0.20837522]
[1758546812208,0.002,113150.0,113140.0,0.59078204]
[1758546812418,0.002,113150.0,113140.0,0.6139904]
[1758546813237,1.41976697,113160.0,113150.0,0.17675651]
[1758546813491,1.41976697,113160.0,113150.0,0.84434333]
[1758546813696,1.41976697,113160.0,113150.0,0.84334333]
[1758546813937,1.41976697,113160.0,113150.0,0.86992172]
[1758546815245,1.41976697,113160.0,113150.0,0.87192172]
[1758546815636,1.41976697,113160.0,113150.0,0.86992172]
[1758546816056,1.41976697,113160.0,113150.0,0.87392172]
[1758546816207,1.41976697,113160.0,113150.0,0.87692172]
[1758546819687,1.41617597,113160.0,113150.0,0.87692172]
[1758546820046,1.41617597,113160.0,113150.0,0.2143549]
[1758546820305,1.41617597,113160.0,113150.0,0.5179149]
[1758546821290,1.41617597,113160.0,113150.0,0.5178749]
[1758546821632,1.41617597,113160.0,113150.0,0.7885749]
[1758546822610,1.41617597,113160.0,113150.0,0.5085349]
[1758546823042,1.41617597,113160.0,113150.0,0.7885749]
[1758546823591,1.41617597,113160.0,113150.0,0.5085349]
[1758546823814,1.41617597,113160.0,113150.0,0.7885749]
[1758546824366,1.41617597,113160.0,113150.0,0.5085349]
[1758546824566,1.41617597,113160.0,113150.0,0.7885349]
[1758546826061,1.41617597,113160.0,113150.0,0.5085349]
[1758546826218,1.41617597,113160.0,113150.0,0.7885349]
[1758546827121,1.41617597,113160.0,113150.0,0.4820649]
[1758546827337,1.80660279,113160.0,113150.0,0.58327839]
[1758546827541,1.80660279,113160.0,113150.0,0.31357839]
[1758546827939,1.80660279,113160.0,113150.0,0.03357839]
[1758546828138,1.42419597,113160.0,113150.0,0.03357839]
[1758546829844,1.97532368,113160.0,113150.0,0.03357839]
[1758546830066,1.98334368,113160.0,113150.0,0.03357839]
[1758546830619,2.51442318,113160.0,113150.0,0.03357839]
[1758546830857,2.79438318,113160.0,113150.0,0.02957839]
[1758546831067,2.61764229,113160.0,113150.0,0.03157839]
[1758546831906,1.41617597,113160.0,113150.0,0.2053349]
[1758546832115,1.41617597,113160.0,113150.0,0.2073649]
[1758546832345,1.69613597,113160.0,113150.0,0.2318349]
[1758546832571,1.98287913,113160.0,113150.0,0.02657839]
[1758546832801,1.99089913,113160.0,113150.0,0.02657839]
[1758546833255,1.70411597,113160.0,113150.0,0.02657839]
[1758546833480,1.69609597,113160.0,113150.0,0.2318349]
[1758546834413,1.69609597,113160.0,113150.0,0.2348349]
[1758546834879,1.69609597,113160.0,113150.0,0.05807839]
[1758546835080,1.69609597,113160.0,113150.0,0.2348349]
[1758546835438,1.69609597,113160.0,113150.0,0.05807839]
[1758546835640,1.69609597,113160.0,113150.0,0.03160839]
[1758546835853,1.98283913,113160.0,113150.0,0.03160839]
[1758546836293,1.98283913,113160.0,113150.0,0.02957839]
[1758546836914,1.41617597,113160.0,113150.0,0.03160839]
[1758546837155,1.98283913,113160.0,113150.0,0.03160839]
[1758546837553,1.70291913,113160.0,113150.0,0.03160839]
[1758546837790,1.98283913,113160.0,113150.0,0.03160839]
[1758546837993,1.98283913,113160.0,113150.0,0.02957839]
[1758546839355,1.69609597,113160.0,113150.0,0.02957839]
[1758546839491,1.98283913,113160.0,113150.0,0.02957839]
[1758546840767,1.69605597,113160.0,113150.0,0.03498839]
[1758546840976,1.98279913,113160.0,113150.0,0.03498839]
[1758546841193,1.98279913,113160.0,113150.0,0.03173839]
[1758546841389,1.69605597,113160.0,113150.0,0.03173839]
[1758546841529,1.98279913,113160.0,113150.0,0.03173839]
[1758546842355,1.98279913,113160.0,113150.0,0.02957839]
[1758546843229,2.27756229,113160.0,113150.0,0.02957839]
[1758546843387,1.99081913,113160.0,113150.0,0.02957839]
[1758546845504,2.27756229,113160.0,113150.0,0.02957839]
[1758546846309,1.99081913,113160.0,113150.0,0.02957839]
[1758546848349,2.45430318,113160.0,113150.0,0.02957839]
[1758546850569,2.27756229,113160.0,113150.0,0.02957839]
[1758546851333,1.70407597,113160.0,113150.0,0.02957839]
[1758546851523,2.27756229,113160.0,113150.0,0.02957839]
[1758546852207,1.70407597,113160.0,113150.0,0.02957839]
[1758546852412,2.26954229,113160.0,113150.0,0.02957839]
[1758546852669,2.45430318,113160.0,113150.0,0.02957839]
[1758546853309,2.27756229,113160.0,113150.0,0.02957839]
[1758546853501,2.27756229,113160.0,113150.0,0.02657839]
[1758546853837,2.27756229,113160.0,113150.0,0.02857839]
[1758546854243,1.99081913,113160.0,113150.0,0.02857839]
[1758546855896,1.98267913,113160.0,113150.0,0.03059839]
[1758546856203,1.98267913,113160.0,113150.0,0.02857839]
[1758546856441,1.69593597,113160.0,113150.0,0.02857839]
[1758546856632,1.98267913,113160.0,113150.0,0.02857839]
[1758546857363,1.69593597,113160.0,113150.0,0.02857839]
[1758546857518,1.98267913,113160.0,113150.0,0.02857839]
[1758546857730,1.41617597,113160.0,113150.0,0.03059839]
[1758546857942,1.70291913,113160.0,113150.0,0.03059839]
[1758546858148,1.98263913,113160.0,113150.0,0.05656839]
[1758546858736,1.69589597,113160.0,113150.0,0.05656839]
[1758546859013,1.98263913,113160.0,113150.0,0.2333249]
[1758546859208,1.41617597,113160.0,113150.0,0.52006806]
[1758546862023,1.41617597,113160.0,113150.0,0.49724806]
[1758546862225,1.41617597,113160.0,113150.0,0.2105049]
[1758546862425,1.98259913,113160.0,113150.0,0.2053349]
[1758546862838,1.41617597,113160.0,113150.0,0.2333249]
[1758546871685,1.41617597,113160.0,113150.0,0.52006806]
[1758546872142,1.41617597,113160.0,113150.0,0.2333249]
[1758546872677,1.41617597,113160.0,113150.0,0.52006806]
[1758546873324,1.41617597,113160.0,113150.0,0.2333249]
[1758546873474,1.41617597,113160.0,113150.0,0.52006806]
[1758546876764,1.41617597,113160.0,113150.0,0.2333249]
[1758546876962,1.41617597,113160.0,113150.0,0.52006806]
[1758546878049,1.41617597,113160.0,113150.0,0.78976806]
[1758546880282,1.41617597,113160.0,113150.0,1.06936806]
[1758546880902,1.41617597,113160.0,113150.0,1.15463773]
[1758546881731,1.41617597,113160.0,113150.0,0.86789457]
[1758546881953,1.41617597,113160.0,113150.0,1.15463773]
[1758546885640,1.41617597,113160.0,113150.0,1.15576773]
[1758546885844,1.41617597,113160.0,113150.0,0.86902457]
[1758546886065,1.41617597,113160.0,113150.0,1.15576773]
[1758546887610,1.41617597,113160.0,113150.0,0.86902457]
[1758546887808,1.41617597,113160.0,113150.0,1.15576773]
[1758546888033,1.41617597,113160.0,113150.0,0.86902457]
[1758546888228,1.41617597,113160.0,113150.0,1.15576773]
[1758546890607,1.41617597,113160.0,113150.0,1.25109777]
[1758546892472,1.41617597,113160.0,113150.0,1.25105777]
[1758546896779,1.41617597,113160.0,113150.0,1.24905777]
[1758546897364,1.41617597,113160.0,113150.0,0.96949777]
[1758546897664,1.41617597,113160.0,113150.0,1.24905777]
[1758546898248,1.41617597,113160.0,113150.0,1.25605777]
[1758546899210,1.41617597,113160.0,113150.0,1.26705777]
[1758546901483,1.41617597,113160.0,113150.0,0.88498457]
[1758546901707,1.41617597,113160.0,113150.0,1.26705777]
[1758546901932,1.41617597,113160.0,113150.0,0.88498457]
[1758546902161,1.41617597,113160.0,113150.0,0.60542457]
[1758546902376,1.41617597,113160.0,113150.0,1.26705777]
[1758546902803,1.41617597,113160.0,113150.0,1.26741777]
[1758546903029,1.41617597,113160.0,113150.0,0.61560457]
[1758546903273,1.41617597,113160.0,113150.0,0.99767777]
[1758546904018,1.41617597,113160.0,113150.0,1.31737777]
[1758546904497,1.41617597,113160.0,113150.0,1.65737777]
[1758546904724,1.41617597,113160.0,113150.0,1.27530457]
[1758546904953,1.41617597,113160.0,113150.0,1.65737777]
[1758546905201,1.41617597,113160.0,113150.0,1.65781777]
[1758546905406,1.41617597,113160.0,113150.0,1.75337777]
[1758546905796,1.41617597,113160.0,113150.0,1.37749777]
[1758546906066,1.41617597,113160.0,113150.0,1.30354777]
[1758546906270,1.41617597,113160.0,113150.0,1.57873777]
[1758546906473,1.41617597,113160.0,113150.0,1.58085777]
[1758546906891,1.41617597,113160.0,113150.0,1.60656777]
[1758546907978,1.41617597,113160.0,113150.0,1.32620777]
[1758546908284,1.41617597,113160.0,113150.0,1.59552777]
[1758546908496,1.41617597,113160.0,113150.0,0.93313457]
[1758546908673,1.41617597,113160.0,113150.0,1.60172777]
[1758546909821,1.41617597,113160.0,113150.0,1.32120777]
[1758546910066,1.41617597,113160.0,113150.0,1.26172777]
[1758546910404,1.41617597,113160.0,113150.0,1.23389777]
[1758546910819,1.41617597,113160.0,113150.0,0.95337777]
[1758546911025,1.41617597,113160.0,113150.0,0.85182457]
[1758546911223,1.41617597,113160.0,113150.0,1.23389777]
[1758546911421,1.42419597,113160.0,113150.0,0.85182457]
[1758546911765,1.42419597,113160.0,113150.0,1.23389777]
[1758546911941,1.42419597,113160.0,113150.0,1.23405777]
[1758546912208,1.42419597,113160.0,113150.0,0.96435777]
[1758546912363,1.42419597,113160.0,113150.0,0.58224457]
[1758546913152,1.42419597,113160.0,113150.0,0.56924457]
[1758546913569,1.42419597,113160.0,113150.0,0.57324457]
[1758546914574,1.42419597,113160.0,113150.0,0.57724457]
[1758546915274,1.42419597,113160.0,113150.0,0.29660457]
[1758546915476,1.42419597,113160.0,113150.0,0.57712457]
[1758546917353,1.42419597,113160.0,113150.0,0.29660457]
[1758546917529,1.42419597,113160.0,113150.0,0.57716457]
[1758546917741,1.42419597,113160.0,113150.0,0.4921349]
[1758546917884,1.42419597,113160.0,113150.0,0.4920949]
[1758546918283,1.42419597,113160.0,113150.0,0.2113349]
[1758546918674,1.42419597,113160.0,113150.0,0.4920949]
[1758546919288,1.42419597,113160.0,113150.0,0.4921349]
[1758546919634,1.42419597,113160.0,113150.0,0.31537839]
[1758546920056,1.42419597,113160.0,113150.0,0.4921349]
[1758546922039,1.42419597,113160.0,113150.0,0.03457839]
[1758546922287,1.42419597,113160.0,113150.0,0.31633839]
[1758546922891,1.42419597,113160.0,113150.0,0.31233839]
[1758546923730,1.42419597,113160.0,113150.0,0.30833839]
[1758546924129,1.42419597,113160.0,113150.0,0.4879349]
[1758546924545,1.42419597,113160.0,113150.0,0.2063349]
[1758546924715,1.42419597,113160.0,113150.0,0.4879349]
[1758546925327,1.42419597,113160.0,113150.0,0.2033349]
[1758546925596,1.42419597,113160.0,113150.0,0.4878549]
[1758546926003,1.45953754,113160.0,113150.0,0.4878549]
[1758546927572,1.45953754,113160.0,113150.0,0.31109839]
[1758546927979,1.45953754,113160.0,113150.0,0.4878549]
[1758546929560,1.45953754,113160.0,113150.0,0.31109839]
[1758546930466,1.45953754,113160.0,113150.0,0.4878549]
[1758546930669,1.45953754,113160.0,113150.0,0.02957839]
[1758546931116,1.45953754,113160.0,113150.0,0.31093839]
[1758546932153,1.45953754,113160.0,113150.0,0.4876949]
[1758546932944,1.45151754,113160.0,113150.0,0.4876949]
[1758546936453,1.45151754,113160.0,113150.0,0.02957839]
[1758546936660,1.45151754,113160.0,113150.0,0.31069839]
[1758546937154,1.45151754,113160.0,113150.0,0.31065839]
[1758546937911,1.45151754,113160.0,113150.0,0.02957839]
[1758546938158,1.45151754,113160.0,113150.0,0.31065839]
[1758546940739,1.45151754,113160.0,113150.0,0.31065839]
[1758546942066,1.45151754,113160.0,113150.0,0.31262839]
[1758546942274,1.45151754,113160.0,113150.0,0.31065839]
[1758546944687,1.45151754,113160.0,113150.0,0.4874149]
[1758546944837,1.45151754,113160.0,113150.0,0.4893849]
[1758546945243,1.45151754,113160.0,113150.0,0.31262839]
[1758546945667,1.45151754,113160.0,113150.0,0.31065839]
[1758546946295,1.45151754,113160.0,113150.0,0.31262839]
[1758546946491,1.45151754,113160.0,113150.0,0.4893849]
[1758546947537,1.45151754,113160.0,113150.0,0.31262839]
[1758546947744,1.45151754,113160.0,113150.0,0.4874149]
[1758546947950,1.45151754,113160.0,113150.0,0.4893849]
[1758546948124,1.45151754,113160.0,113150.0,0.4924949]
[1758546948273,1.45151754,113160.0,113150.0,0.5161549]
[1758546950173,1.41617597,113160.0,113150.0,0.5161549]
[1758546951772,1.41617597,113160.0,113150.0,0.33939839]
[1758546951982,1.41617597,113160.0,113150.0,0.5161549]
[1758546952181,1.41617597,113160.0,113150.0,0.05831839]
[1758546952529,1.41617597,113160.0,113150.0,0.33879839]
[1758546952703,1.73358094,113160.0,113150.0,0.33879839]
[1758546953320,1.44692938,113160.0,113150.0,0.5155549]
[1758546953727,1.73358094,113160.0,113150.0,0.33879839]
[1758546954334,1.73358094,113160.0,113150.0,0.5155549]
[1758546956106,1.73358094,113160.0,113150.0,0.33879839]
[1758546956328,1.73358094,113160.0,113150.0,0.05520839]
[1758546956514,2.48531339,113160.0,113150.0,0.02957839]
[1758546957857,2.48531339,113160.0,113150.0,0.02657839]
[1758546958049,2.48531339,113160.0,113150.0,0.02857839]
[1758546959851,2.0282525,113160.0,113150.0,0.02857839]
[1758546960240,2.3084125,113160.0,113150.0,0.02857839]
[1758546960472,2.48515339,113160.0,113150.0,0.02857839]
[1758546961500,1.91185027,113160.0,113150.0,0.02857839]
[1758546961907,2.48515339,113160.0,113150.0,0.02857839]
[1758546967075,2.20499339,113160.0,113150.0,0.02857839]
[1758546967288,1.91177027,113160.0,113150.0,0.02857839]
[1758546967423,2.48507339,113160.0,113150.0,0.02857839]
[1758546967891,2.20499339,113160.0,113150.0,0.02857839]
[1758546968019,1.63169027,113160.0,113150.0,0.02857839]
[1758546968236,1.44692938,113160.0,113150.0,0.03368839]
[1758546968442,1.72712938,113160.0,113150.0,0.05844839]
[1758546968661,2.01382094,113160.0,113150.0,0.05844839]
[1758546969058,2.47721339,113160.0,113150.0,0.02857839]
[1758546969261,2.48523339,113160.0,113150.0,0.02857839]
[1758546969485,1.91193027,113160.0,113150.0,0.02857839]
[1758546969701,2.48523339,113160.0,113150.0,0.02857839]
[1758546970229,2.19858183,113160.0,113150.0,0.02857839]
[1758546974769,1.91193027,113160.0,113150.0,0.02857839]
[1758546974981,2.19858183,113160.0,113150.0,0.02857839]
[1758546975546,2.19056183,113160.0,113150.0,0.02857839]
[1758546975965,2.19858183,113160.0,113150.0,0.02857839]
[1758546977639,1.91193027,113160.0,113150.0,0.02857839]
[1758546977843,2.19858183,113160.0,113150.0,0.02857839]
[1758546979361,1.91193027,113160.0,113150.0,0.02857839]
[1758546979578,2.19858183,113160.0,113150.0,0.02857839]
[1758546980809,1.91193027,113160.0,113150.0,0.02857839]
[1758546981063,2.19858183,113160.0,113150.0,0.02857839]
[1758546982613,1.63169027,113160.0,113150.0,0.02857839]
[1758546982870,2.19834183,113160.0,113150.0,0.02857839]
[1758546983096,2.19032183,113160.0,113150.0,0.02857839]
[1758546983930,1.90359027,113160.0,113150.0,0.34364995]
[1758546984146,1.90371027,113160.0,113150.0,0.34364995]
[1758546985106,1.90371027,113160.0,113150.0,0.05699839]
[1758546985302,1.90371027,113160.0,113150.0,0.34364995]
[1758546986046,1.62367027,113160.0,113150.0,0.34364995]
[1758546986227,1.62367027,113160.0,113150.0,0.05699839]
[1758546986428,1.62367027,113160.0,113150.0,0.32040995]
[1758546986625,1.90363027,113160.0,113150.0,0.34364995]
[1758546986834,1.62367027,113160.0,113150.0,0.34364995]
[1758546987036,1.90387027,113160.0,113150.0,0.34364995]
[1758546987290,1.62367027,113160.0,113150.0,0.34364995]
[1758546987597,1.90391027,113160.0,113150.0,0.34364995]
[1758546988157,1.90395027,113160.0,113150.0,0.34364995]
[1758546989134,1.44692938,113160.0,113150.0,0.49716646]
[1758546989348,1.69649597,113160.0,113150.0,0.52091646]
[1758546989975,1.41617597,113160.0,113150.0,0.52091646]
[1758546991922,1.41617597,113160.0,113150.0,0.2342649]
[1758546992123,1.41617597,113160.0,113150.0,0.52091646]
[1758546995413,1.69653597,113160.0,113150.0,0.52091646]
[1758546996294,1.69653597,113160.0,113150.0,0.52095646]
[1758546998701,1.69653597,113160.0,113150.0,0.80131646]
[1758547001373,1.69653597,113160.0,113150.0,0.52095646]
[1758547001855,1.69653597,113160.0,113150.0,0.5143449]
[1758547002059,1.69653597,113160.0,113150.0,0.52095646]
[1758547002271,1.69653597,113160.0,113150.0,0.34419995]
[1758547002475,1.69653597,113160.0,113150.0,0.52095646]
[1758547004857,1.41617597,113160.0,113150.0,0.52095646]
[1758547005058,1.69625597,113160.0,113150.0,0.52095646]
[1758547006897,1.41617597,113160.0,113150.0,0.52095646]
[1758547007019,1.69617597,113160.0,113150.0,0.52095646]
[1758547007244,1.41617597,113160.0,113150.0,0.52095646]
[1758547007431,1.69617597,113160.0,113150.0,0.52095646]
[1758547007842,1.69617597,113160.0,113150.0,0.2343049]
[1758547008079,1.69617597,113160.0,113150.0,0.52095646]
[1758547009277,1.69617597,113160.0,113150.0,0.2343049]
[1758547009492,1.69617597,113160.0,113150.0,0.52095646]
[1758547009729,1.69617597,113160.0,113150.0,0.2343049]
[1758547009925,1.69617597,113160.0,113150.0,0.52095646]
[1758547010708,1.69617597,113160.0,113150.0,0.2343049]
[1758547011100,1.69617597,113160.0,113150.0,0.52095646]
[1758547012555,1.69617597,113160.0,113150.0,0.61646264]
[1758547019085,1.87291686,113160.0,113150.0,0.43970613]
[1758547019290,1.69617597,113160.0,113150.0,0.43970613]
[1758547019715,1.69617597,113160.0,113150.0,0.61646264]
[1758547021329,1.69617597,113160.0,113150.0,0.43970613]
[1758547021712,1.69601597,113160.0,113150.0,0.61646264]
[1758547021898,1.69601597,113160.0,113150.0,0.59271264]
[1758547022103,1.69601597,113160.0,113150.0,0.61581264]
[1758547024074,1.41617597,113160.0,113150.0,0.61581264]
[1758547024917,1.69601597,113160.0,113150.0,0.61581264]
[1758547025157,1.69601597,113160.0,113150.0,0.89565264]
[1758547027148,1.41617597,113160.0,113150.0,1.25062231]
[1758547027763,1.41617597,113160.0,113150.0,0.97078231]
[1758547028314,1.41617597,113160.0,113150.0,1.24862231]
[1758547028652,1.41617597,113160.0,113150.0,1.25162231]
[1758547028858,1.41617597,113160.0,113150.0,1.25862231]
[1758547029108,1.41617597,113160.0,113150.0,1.25562231]
[1758547029504,1.41617597,113160.0,113150.0,1.26162231]
[1758547037601,1.41617597,113160.0,113150.0,0.98178231]
[1758547038218,1.41617597,113160.0,113150.0,1.26158231]
[1758547039444,1.41617597,113160.0,113150.0,0.98178231]
[1758547039660,1.41617597,113160.0,113150.0,1.26158231]
[1758547040959,1.41617597,113160.0,113150.0,0.98178231]
[1758547041369,1.41617597,113160.0,113150.0,1.26158231]
[1758547045136,1.41617597,113160.0,113150.0,0.98178231]
[1758547045357,1.41617597,113160.0,113150.0,1.26158231]
[1758547046156,1.41617597,113160.0,113150.0,0.98178231]
[1758547046457,1.41617597,113160.0,113150.0,1.23848231]
[1758547046674,1.41617597,113160.0,113150.0,0.96559231]
[1758547047081,1.42419597,113160.0,113150.0,0.96360231]
[1758547047294,1.41617597,113160.0,113150.0,0.96360231]
[1758547047621,1.42419597,113160.0,113150.0,0.96360231]
[1758547048049,1.41617597,113160.0,113150.0,0.68380231]
[1758547048259,1.41617597,113160.0,113150.0,0.96569231]
[1758547048497,1.41617597,113160.0,113150.0,0.99315231]
[1758547048908,1.41617597,113160.0,113150.0,0.98715231]
[1758547049120,1.41617597,113160.0,113150.0,0.02661839]
[1758547049315,1.70399597,113160.0,113150.0,0.2073749]
[1758547049523,1.70399597,113160.0,113150.0,0.2113749]
[1758547049783,1.42419597,113160.0,113150.0,0.2113749]
[1758547049999,1.42419597,113160.0,113150.0,0.59353264]
[1758547050445,1.42419597,113160.0,113150.0,0.2113749]
[1758547052118,1.42419597,113160.0,113150.0,0.59353264]
[1758547052567,1.42419597,113160.0,113150.0,0.2113749]
[1758547053075,1.70399597,113160.0,113150.0,0.4911749]
[1758547053290,1.42419597,113160.0,113150.0,0.4911749]
[1758547058785,1.70399597,113160.0,113150.0,0.4911749]
[1758547059645,1.70399597,113160.0,113150.0,0.4871749]
[1758547059845,1.70399597,113160.0,113150.0,0.4831749]
[1758547060019,2.2628946,113160.0,113150.0,0.02661839]
[1758547061012,2.2628946,113160.0,113150.0,0.02961839]
[1758547061230,1.9830946,113160.0,113150.0,0.02961839]
[1758547061457,2.2628946,113160.0,113150.0,0.02961839]
[1758547061681,2.2628946,113160.0,113150.0,0.02661839]
[1758547061918,2.66837709,113160.0,113150.0,0.02861839]
[1758547062136,4.61150809,113160.0,113150.0,0.00204]
[1758547062354,0.17677214,113140.0,113130.0,0.0265872]
[1758547062567,0.94242988,113140.0,113130.0,0.02672763]
[1758547062778,1.0510243,113140.0,113130.0,0.02672763]
[1758547064344,1.30575463,113140.0,113130.0,0.02672763]
[1758547064568,1.28242988,113140.0,113130.0,0.00014043]
[1758547066127,2.10915188,113140.0,113130.0,0.00014043]
[1758547066340,2.13444017,113140.0,113130.0,0.00014043]
[1758547066559,1.86308842,113140.0,113130.0,0.00014043]
[1758547066778,1.94835809,113140.0,113130.0,0.00014043]
[1758547067196,1.97495099,113140.0,113130.0,0.00014043]
[1758547067408,1.98113552,113140.0,113130.0,0.00014043]
[1758547068517,1.60565552,113140.0,113130.0,0.00014043]
[1758547068727,1.23859698,113140.0,113130.0,0.00014043]
[1758547068852,1.91009698,113140.0,113130.0,0.00014043]
[1758547069257,1.81553698,113140.0,113130.0,0.00014043]
[1758547069459,1.92009698,113140.0,113130.0,0.00014043]
[1758547069665,1.92017698,113140.0,113130.0,0.00014043]
[1758547069884,1.03499698,113140.0,113130.0,0.00014043]
[1758547070146,2.43361552,113140.0,113130.0,0.00014043]
[1758547070557,2.40294698,113140.0,113130.0,0.00014043]
[1758547071461,2.40194698,113140.0,113130.0,0.00014043]
[1758547071670,1.64406698,113140.0,113130.0,0.00014043]
[1758547071875,2.40194698,113140.0,113130.0,0.00014043]
[1758547072101,2.40494698,113140.0,113130.0,0.00014043]
[1758547072313,1.92631924,113140.0,113130.0,0.00014043]
[1758547072515,2.30847698,113140.0,113130.0,0.00014043]
[1758547072732,1.99935698,113140.0,113130.0,0.00014043]
[1758547072953,2.06836408,113140.0,113130.0,0.00014043]
[1758547073891,1.68620634,113140.0,113130.0,0.00014043]
[1758547074098,2.06836408,113140.0,113130.0,0.00014043]
[1758547074746,2.54693079,113140.0,113130.0,0.00014043]
[1758547075263,1.49404264,113140.0,113130.0,0.00014043]
[1758547075442,1.87143811,113140.0,113130.0,0.00014043]
[1758547075679,1.8776539,113140.0,113130.0,0.00014043]
[1758547077464,1.10876423,113140.0,113130.0,0.00230043]
[1758547077669,1.38876423,113140.0,113130.0,0.02903043]
[1758547077883,1.38876423,113140.0,113130.0,0.05562005]
[1758547079130,1.38876423,113140.0,113130.0,0.03202005]
[1758547079328,1.38876423,113140.0,113130.0,0.05562005]
[1758547079557,1.04876423,113140.0,113130.0,0.05562005]
[1758547080337,1.38876423,113140.0,113130.0,0.05562005]
[1758547080745,1.38876423,113140.0,113130.0,0.02903043]
[1758547081084,0.82185608,113140.0,113130.0,0.02903043]
[1758547081287,0.01817579,113140.0,113130.0,0.20581819]
[1758547081490,0.47486793,113140.0,113130.0,0.20581819]
[1758547081708,0.29809579,113140.0,113130.0,0.20581819]
[1758547081903,0.29813579,113140.0,113130.0,0.20581819]
[1758547082491,0.29813579,113140.0,113130.0,0.49272634]
[1758547082719,0.29813579,113140.0,113130.0,0.20581819]
[1758547082913,0.76181608,113140.0,113130.0,0.02903043]
[1758547083565,1.04872423,113140.0,113130.0,0.02903043]
[1758547083985,1.04872423,113140.0,113130.0,0.00543043]
[1758547084156,0.76181608,113140.0,113130.0,0.02903043]
[1758547084980,0.47490793,113140.0,113130.0,0.02903043]
[1758547085166,0.76181608,113140.0,113130.0,0.02903043]
[1758547085380,1.04872423,113140.0,113130.0,0.02903043]
[1758547085525,0.76181608,113140.0,113130.0,0.02903043]
[1758547088108,0.47490793,113140.0,113130.0,0.02903043]
[1758547088323,0.76181608,113140.0,113130.0,0.02903043]
[1758547088537,0.76181608,113140.0,113130.0,0.00014043]
[1758547089404,0.76181608,113140.0,113130.0,0.02903043]
[1758547090015,0.19494793,113140.0,113130.0,0.02903043]
[1758547090300,0.47518793,113140.0,113130.0,0.02903043]
[1758547090876,0.4752158,113140.0,113130.0,0.02903043]
[1758547092917,0.76212395,113140.0,113130.0,0.02903043]
[1758547094031,0.4752158,113140.0,113130.0,0.02903043]
[1758547094265,0.76212395,113140.0,113130.0,0.02903043]
[1758547094473,0.4752158,113140.0,113130.0,0.02903043]
[1758547096740,0.76212395,113140.0,113130.0,0.02903043]
[1758547097515,0.01820366,113140.0,113130.0,0.49391634]
[1758547097715,0.01820377,113140.0,113130.0,0.49391634]
[1758547098299,0.01820377,113140.0,113130.0,0.52050032]
[1758547098488,0.01820391,113140.0,113130.0,0.52050032]
[1758547099049,0.01520391,113140.0,113130.0,0.52050032]
[1758547099463,0.00720391,113140.0,113130.0,0.52050032]
[1758547099825,0.00720391,113140.0,113130.0,0.23359217]
[1758547099964,0.00920391,113140.0,113130.0,0.52050032]
[1758547100160,0.00720391,113140.0,113130.0,0.52050032]
[1758547100619,0.00620391,113140.0,113130.0,0.23859217]
[1758547100974,0.00620391,113140.0,113130.0,0.24159217]
[1758547101362,0.74370471,113150.0,113130.0,0.24159217]
[1758547101563,0.74990992,113150.0,113130.0,0.21367217]
[1758547101839,0.74990992,113150.0,113140.0,0.02773]
[1758547102046,0.74990992,113150.0,113140.0,0.02973]
[1758547102893,0.46300177,113150.0,113140.0,0.02973]
[1758547103100,0.74990992,113150.0,113140.0,0.02679]
[1758547103317,0.74990992,113150.0,113140.0,0.02479]
[1758547103522,0.17677214,113140.0,113130.0,0.02772441]
[1758547103730,0.75679365,113140.0,113130.0,0.00114043]
[1758547103934,0.76481365,113140.0,113130.0,0.00014043]
[1758547104143,0.75679365,113140.0,113130.0,0.00014043]
[1758547104345,0.76481365,113140.0,113130.0,0.00014043]
[1758547105409,0.76481865,113140.0,113130.0,0.00114043]
[1758547105636,0.4779105,113140.0,113130.0,0.00114043]
[1758547105852,0.4698905,113140.0,113130.0,0.00114043]
[1758547106285,0.46368029,113140.0,113130.0,0.00114043]
[1758547107168,0.46368029,113140.0,113130.0,0.00214043]
[1758547108142,0.46368029,113140.0,113130.0,0.00114043]
[1758547108367,0.46368029,113140.0,113130.0,0.00014043]
[1758547108772,0.17677214,113140.0,113130.0,0.20603819]
[1758547108985,0.56730815,113140.0,113130.0,0.20603819]
[1758547109402,0.74408029,113140.0,113130.0,0.20603819]
[1758547109821,0.74608029,113140.0,113130.0,0.20603819]
[1758547110023,0.74408029,113140.0,113130.0,0.20603819]
[1758547110240,0.74408029,113140.0,113130.0,0.02925043]
[1758547110441,0.74408029,113140.0,113130.0,0.00639043]
[1758547110671,0.74408029,113140.0,113130.0,0.00321043]
[1758547111075,0.74408029,113140.0,113130.0,0.00421043]
[1758547111757,0.45717214,113140.0,113130.0,0.00421043]
[1758547111958,0.74408029,113140.0,113130.0,0.00421043]
[1758547112963,0.74408029,113140.0,113130.0,0.00214043]
[1758547113367,0.75210029,113140.0,113130.0,0.00214043]
[1758547113544,0.74408029,113140.0,113130.0,0.00214043]
[1758547113920,0.74408029,113140.0,113130.0,0.00421043]
[1758547114324,0.74408029,113140.0,113130.0,0.00214043]
[1758547115208,0.74388029,113140.0,113130.0,0.20803819]
[1758547115361,0.28016,113140.0,113130.0,0.20803819]
[1758547115572,0.74384029,113140.0,113130.0,0.20803819]
[1758547115785,0.74384029,113140.0,113130.0,0.03125043]
[1758547116017,0.7429122,113140.0,113130.0,0.03125043]
[1758547117049,0.7429122,113140.0,113130.0,0.00214043]
[1758547118353,1.03784035,113140.0,113130.0,0.00214043]
[1758547119583,1.03784035,113140.0,113130.0,0.00114043]
[1758547119793,1.03784035,113140.0,113130.0,0.00014043]
[1758547120030,0.46402405,113140.0,113130.0,0.00014043]
[1758547120210,0.7529322,113140.0,113130.0,0.00014043]
[1758547120372,0.7449122,113140.0,113130.0,0.00014043]
[1758547120572,0.7429122,113140.0,113130.0,0.00014043]
[1758547120782,0.7449122,113140.0,113130.0,0.00014043]
[1758547120987,0.17877214,113140.0,113130.0,0.02925043]
[1758547121190,0.46568029,113140.0,113130.0,0.02925043]
[1758547121416,0.74588029,113140.0,113130.0,0.02925043]
[1758547121878,0.74588029,113140.0,113130.0,0.00014043]
[1758547122985,0.74588029,113140.0,113130.0,0.00221043]
[1758547123130,0.74588029,113140.0,113130.0,0.02925043]
[1758547123986,0.74588029,113140.0,113130.0,0.00014043]
[1758547124152,0.75390029,113140.0,113130.0,0.00014043]
[1758547124361,0.74588029,113140.0,113130.0,0.00014043]
[1758547125402,0.75390029,113140.0,113130.0,0.00014043]